Cogmind - Beta 17 @@@ ROGUE MODE // 2026.07.18 @ 22:19:05 Player: CONM Result: Destroyed by D-53 Grenadier with Mini Grenade Launcher Performance ------------- Evolutions (0) 0 Regions Visited (2) 400 Robots Destroyed (15) 75 Value Destroyed (280) 280 Prototype IDs (0) 0 Alien Tech Used (0) 0 Bonus (0) 0 TOTAL SCORE: 755 Bonus ------- None Cogmind --------- Core Integrity 0/250 Matter 241/300 Energy 247/265 System Corruption 0% Temperature Cool (0) Movement Rolling (95) Ox1 Location -10/Mines Parts ------- > --- POWER (1) -------- Improved Ion Engine > --- PROPULSION (2) --- Wheel Wheel > --- UTILITY (2) ------ Large Storage Unit Structural Scanner > --- WEAPON (2) ------- Mini Grenade Launcher > --- INVENTORY (15) --- Ion Engine Light Ion Engine Improved Ion Engine Light Treads Light Treads Light Treads Aluminum Leg Structural Scanner Sensor Array Signal Interpreter Signal Interpreter Terrain Scanner Tractor Beam Assault Rifle Grenade Launcher Peak State ------------ > --- POWER ------------ Improved Ion Engine > --- PROPULSION ------- Light Treads Light Treads > --- UTILITY ---------- Large Storage Unit Structural Scanner > --- WEAPON ----------- Mini Grenade Launcher Welding Torch > --- INVENTORY -------- Ion Engine Light Ion Engine Improved Ion Engine Light Treads Aluminum Leg Wheel Wheel Structural Scanner Sensor Array Signal Interpreter Signal Interpreter Terrain Scanner Tractor Beam Assault Rifle Grenade Launcher [Rating: 10] Favorites ----------- Power Light Ion Engine Engine Light Ion Engine Propulsion Light Treads Treads Light Treads Wheel Wheel Utility Structural Scanner Device Structural Scanner Storage Medium Storage Unit Weapon Assault Rifle Ballistic Gun Assault Rifle Launcher Mini Grenade Launcher Special Weapon Welding Torch Build | -11 -10 -10 ------- Run | Yrd Mat Min Slots Evolved . | . . . Power . | . . . Propulsion . | . . . Utility . | . . . Weapon . | . . . Parts Attached 18 | 7 10 1 Power 2 | 1 1 . Engine 2 | 1 1 . Core . | . . . Reactor . | . . . Propulsion 6 | 2 3 1 Treads 2 | . 2 . Leg . | . . . Wheel 4 | 2 1 1 Hover . | . . . Flight . | . . . Utility 5 | 2 3 . Device 2 | 1 1 . Storage 3 | 1 2 . Processor . | . . . Hackware . | . . . Protection . | . . . Artifact . | . . . Weapon 5 | 2 3 . Energy Gun . | . . . Energy Cannon . | . . . Ballistic Gun 3 | 2 1 . Ballistic Cannon . | . . . Launcher 1 | . 1 . Special Weapon 1 | . 1 . Impact Weapon . | . . . Slashing Weapon . | . . . Piercing Weapon . | . . . Special Melee Weapon . | . . . Unidentified Prototypes . | . . . Parts Lost 1 | . . 1 Power . | . . . Propulsion . | . . . Utility . | . . . Weapon 1 | . . 1 Highest Loss Streak 1 | . . 1 To Critical Strikes . | . . . Average Backups 11 | 4 11 15 Power 1 | . 1 3 Propulsion 3 | 3 3 4 Utility 4 | . 4 6 Weapon 1 | . 1 2 Tool/Special . | . . . Unused Backups 13 | . 2 11 Power 2 | . . 2 Propulsion 3 | . 1 2 Utility 7 | . 1 6 Weapon 1 | . . 1 Tool/Special . | . . . Average Slot Usage (%) 100 | . 100 100 Engine 14 | . 14 14 Treads 25 | . 25 27 Wheel 2 | . 2 . Device 14 | . 14 14 Storage 14 | . 14 14 Ballistic Gun 17 | . 19 . Launcher 3 | . 2 14 Special Weapon 7 | . 6 14 Peak Build Rating 10 | 7 10 10 Average Rating 8 | 4 8 10 On Entrance 5 | . 7 10 Avg Prop Armor Cover (%) . | . . . Naked Turns . | . . . Heaviest Build 31 | 13 31 30 Greatest Support 40 | 26 40 40 Greatest Overweight (x) 1 | 1 . 1 Average Overweight (x) . | . . . Largest Inventory Capacity 15 | 8 15 15 Average Capacity 11 | 7 11 15 Most Carried 15 | 7 15 15 Average Carried 11 | 4 11 15 Final Capacity 15 | 8 15 15 Final Carried 15 | 7 15 15 Class Distribution -------------------- 100% | Mutant Dominant Class ---------------- Mutant | -10/Materials Mutant | -10/Mines Resources | -11 -10 -10 ----------- Run | Yrd Mat Min Matter Collected 521 | 225 296 . Remotely . | . . . Salvage Created 344 | 66 278 . Parts 31 | 7 24 . Haulers Intercepted . | . . . Recyclers Shooed . | . . . Parts Field Recycled . | . . . Retrieved Matter . | . . . Parts Self-Destructed . | . . . Prevented . | . . . Parts Restored . | . . . Kills | -11 -10 -10 ------- Run | Yrd Mat Min Combat Hostiles Destroyed 11 | . 11 . Guns 8 | . 8 . AOE 3 | . 3 . Classes Destroyed 4 | 1 3 . Tunneler 3 | 3 . . Watcher 1 | . 1 . Swarmer 6 | . 6 . Grunt 5 | . 5 . Best Kill Streak 4 | 2 4 . Combat Bots Only 3 | . 3 . Max Kills in Single Turn 2 | 1 2 . Gunslinging . | . . . Exploded 2 | . 2 . Melee . | . . . Uniques/NPCs Destroyed . | . . . Combat | -11 -10 -10 -------- Run | Yrd Mat Min Hostile Shots Fired 72 | . 59 13 Missed 17 | . 16 1 Hits 55 | . 43 12 Projectile 55 | . 43 12 AOE 12 | . . 12 Critical Strikes 2 | . 2 . Damage Taken 857 | . 431 426 Core 266 | . 109 157 Absorbed by Shields . | . . . Core Remaining (%) 100 | 100 . . Volleys Fired 39 | 5 34 . Largest 2 | 2 2 . Hottest 40 | 40 40 . Shots Fired 68 | 10 58 . Gun 55 | 10 45 . Cannon . | . . . Launcher 3 | . 3 . Special 10 | . 10 . Kinetic 55 | 10 45 . Thermal 10 | . 10 . Explosive 3 | . 3 . Electromagnetic . | . . . Robot Hit Streak 6 | 4 6 . Robot Miss Streak 3 | 1 3 . Penetration Max . | . . . Secondary Targets 1 | . 1 . Max Gunslinging Chain 1 | . 1 . Shots Hit Robots 33 | 7 26 . Core Hits 20 | 3 17 . Critical Kills . | . . . Critical Parts Destroyed . | . . . Critical Strikes . | . . . Melee Attacks . | . . . Impact . | . . . Slashing . | . . . Piercing . | . . . Sneak Attacks . | . . . Combat Hostiles . | . . . Follow-up Attacks . | . . . Damage Inflicted 586 | 80 506 . Guns 380 | 80 300 . Cannons . | . . . Explosions 202 | . 202 . Melee . | . . . Ramming . | . . . Kinetic 380 | 80 300 . Thermal 4 | . 4 . Explosive 202 | . 202 . Electromagnetic . | . . . Impact . | . . . Slashing . | . . . Piercing . | . . . Highest Corruption . | . . . Average Corruption . | . . . Corruption Purged . | . . . Corruption Blocked . | . . . Overload Shots . | . . . Overflow Damage . | . . . Projectiles . | . . . Explosions . | . . . Melee . | . . . Knockbacks . | . . . Impact . | . . . Kinetic . | . . . Secondary . | . . . Self-Inflicted Damage . | . . . Shots . | . . . Rammed . | . . . Targets Rammed . | . . . Kicked . | . . . Crushed . | . . . Highest Temperature 2 | . 2 . Average Temperature 2 | . 2 . Received Heat Transfer 84 | . 84 . Siege Activations . | . . . Martial Activations . | . . . Shielding Activations . | . . . Robots Disrupted . | . . . Combat Hostiles . | . . . Robots Corrupted . | . . . Combat Hostiles . | . . . Parts Fried . | . . . Impact Corruptions . | . . . Robots Melted . | . . . Combat Hostiles . | . . . Parts Melted . | . . . Heat Transferred 25 | . 25 . Parts Sabotaged . | . . . Parts Stolen . | . . . Parts Stripped . | . . . Power Chain Reactions . | . . . Alert | -11 -10 -10 ------- Run | Yrd Mat Min Maximum Alert Level . | . . . Low Security (%) 100 | 100 100 100 Level 1 . | . . . Level 2 . | . . . Level 3 . | . . . Level 4 . | . . . Level 5 . | . . . High Security . | . . . Max Security . | . . . Peak Influence 163 | 5 163 18 Initial 18 | . 3 18 Average 33 | . 40 3 Influence Increases 404 | 15 389 . Destroy 0b10 Robot/C 220 | . 220 . Destroy 0b10 Robot/NC 20 | 15 5 . Destroy Leader 42 | . 42 . Successful Hack 12 | . 12 . Destroy Structure 20 | . 20 . Partial Spotted 30 | . 30 . Lose Combat Pursuer 60 | . 60 . Influence Decreases 404 | 10 347 47 Entered New Map 31 | . 2 29 Time Decay 373 | 10 345 18 Squads Dispatched 2 | . 2 . Investigation 2 | . 2 . Extermination . | . . . Reinforcement . | . . . Assault . | . . . Garrison . | . . . Intercept . | . . . Searches Triggered . | . . . Construction Impeded . | . . . Haulers Reinforced . | . . . Active Scanning Responses . | . . . Cargo Convoy Interrupts . | . . . Stealth | -11 -10 -10 --------- Run | Yrd Mat Min Distress Signals 3 | . 3 . Communications Jammed . | . . . Distress Signals . | . . . Times Spotted 33 | . 23 10 Peak Tracking Total 7 | . 4 7 Tactical Retreats 1 | . 1 . Traps | -11 -10 -10 ------- Run | Yrd Mat Min Traps Triggered 3 | . 3 . Indirectly . | . . . Trap Hack Attempts . | . . . Triggered . | . . . Disarmed . | . . . Reprogrammed . | . . . Reused . | . . . Traps Extracted . | . . . Installed . | . . . Triggered . | . . . Machines | -11 -10 -10 ---------- Run | Yrd Mat Min Machines Disabled . | . . . Max in Single Turn . | . . . Machines Repaired . | . . . Machines Dismantled . | . . . Machines Sabotaged . | . . . Overloaded Fab Kills . | . . . Hacking | -11 -10 -10 --------- Run | Yrd Mat Min Machines Accessed 7 | . 7 . Terminals 7 | . 7 . Fabricators . | . . . Repair Stations . | . . . Recycling Units . | . . . Scanalyzers . | . . . Garrison Access . | . . . Total Hacks 18 | . 18 . Successful 12 | . 12 . Failed 6 | . 6 . Catastrophic 1 | . 1 . Database Lockouts . | . . . Manual 10 | . 10 . Terminals 18 | . 18 . Fabricators . | . . . Repair Stations . | . . . Recycling Units . | . . . Scanalyzers . | . . . Garrison Access . | . . . Terminal Hacks 7 | . 7 . Record 2 | . 2 . Level Access Points 1 | . 1 . Branch Access Points 1 | . 1 . Maintenance Status 1 | . 1 . Registered Components 1 | . 1 . Zone Layout 1 | . 1 . Fabricator Hacks . | . . . Repair Station Hacks . | . . . Recycling Unit Hacks . | . . . Scanalyzer . | . . . Garrison Access Hacks . | . . . Unauthorized Hacks 5 | . 5 . Terminals 5 | . 5 . Track 2 | . 2 . Assimilate 1 | . 1 . Botnet 1 | . 1 . Operators 1 | . 1 . Fabricators . | . . . Repair Stations . | . . . Recycling Units . | . . . Scanalyzers . | . . . Garrison Access . | . . . Data Cores Recovered . | . . . Used . | . . . Hacking Detections 6 | . 6 . Full Trace Events . | . . . Feedback Events . | . . . Feedback Blocked . | . . . Robot Schematics Acquired . | . . . Robots Built . | . . . Authchips . | . . . Time . | . . . Total Robot Build Rating . | . . . Part Schematics Acquired . | . . . Parts Built . | . . . Authchips . | . . . Time . | . . . Total Part Build Rating . | . . . Part Studies Acquired . | . . . Parts Repaired . | . . . Time . | . . . Parts Recycled . | . . . Recycled Matter . | . . . Retrieved Matter . | . . . Retrieved Components . | . . . Parts Scanalyzed . | . . . Part Schematics Acquired . | . . . Parts Damaged . | . . . Bothacking | -11 -10 -10 ------------ Run | Yrd Mat Min Used RIF Installer . | . . . Robots Hacked . | . . . Non-combat . | . . . Combat . | . . . Robot Hacks Applied . | . . . Relay Couplers Released . | . . . Fabnet Peak Effective % . | . . . Robots Rewired . | . . . Allies Hacked . | . . . Hacks Repelled . | . . . Allies | -11 -10 -10 -------- Run | Yrd Mat Min Total Allies 3 | . . 3 Largest Group 3 | . . 3 Highest-Rated Group 40 | . . 40 Highest-Rated Ally 16 | . . 16 Total Orders . | . . . Ally Attacks 17 | . . 17 Total Damage 215 | . . 215 Kills 2 | . . 2 Allies Corrupted 1 | . . 1 Allies Melted 1 | . . 1 Intel | -11 -10 -10 ------- Run | Yrd Mat Min Active Infowar (turns) 1539 | 7 1371 161 Structural 1305 | . 1144 161 Seismic 234 | 7 227 . Robot Analysis Total . | . . . Derelict Logs Recovered . | . . . Drone Launches . | . . . Drone Recoveries . | . . . Exploration | -11 -10 -10 ------------- Run | Yrd Mat Min Turns Passed 1651 | 119 1371 161 Spaces Moved 1019 | 95 825 99 Core 3 | 3 . . Treads 817 | . 719 98 Legs . | . . . Wheels 199 | 92 106 1 Hover . | . . . Flight . | . . . Fastest Speed 50 | 50 80 95 Average Speed 145 | 89 150 159 Slowest Speed 160 | 100 160 160 Overloaded Moves . | . . . Propulsion Burnouts . | . . . Robots Hopped . | . . . Potential Cave-ins . | . . . Cave-ins Triggered . | . . . Exploration Rate (%) 39 | 4 97 18 Regions Visited 2 Branch Regions 1 Pre-discovered Areas . | . . . Known Exits Taken 1 | . 1 . Unknown Exits Taken 1 | 1 . . Scrap Searched . | . . . Spaces Dug . | . . . Terrain Destroyed 19 | . 19 . Melee . | . . . Projectile . | . . . AOE 19 | . 19 . Terrain Rammed . | . . . Walls Destroyed . | . . . Machines Disabled . | . . . Actions | -11 -10 -10 --------- Run | Yrd Mat Min Total 1115 | 115 899 101 Wait 15 | 2 13 . Move 1017 | 94 824 99 Hop . | . . . Pick Up 18 | 7 11 . Fast Attach 7 | 7 . . Attach 1 | . 1 . Detach . | . . . Swap 11 | . 9 2 Drop 7 | . 7 . Fire 39 | 5 34 . Melee . | . . . Ram . | . . . Kick . | . . . Crush . | . . . Escape Stasis . | . . . Rewire . | . . . Trap . | . . . Miscellaneous . | . . . Route ------- -11/Scrapyard -10/Materials (discovered 4 exits: *Mat x3 / *Min) -10/Mines (discovered 1 exit: *Mat) History --------- Turn | Location | Event 9 | -11/Scrapyard | Discovered new exit (range 16) 120 | -11/Scrapyard | Entered Materials 166 | -10/Materials | Identified exit to Mines 300 | -10/Materials | Build established: Mutant 439 | -10/Materials | Discovered new exit (range 8) 800 | -10/Materials | Identified exit to Materials 1491 | -10/Materials | Entered Mines 1515 | -10/Mines | Discovered exit to Materials (range 8) 1527 | -10/Mines | Assisted by bots powering up and referring to "LRC-V3" 1593 | -10/Mines | Assembled infested the area 1598 | -10/Mines | Assisted by a Guerilla fighting off Assembled 1636 | -10/Mines | Core integrity fell below 50% 1651 | -10/Mines | Core integrity fell below 20% 1652 | -10/Mines | Destroyed by D-53 Grenadier with Mini Grenade Launcher Last Messages --------------- 01615_ as-93305 knocked back. 01617_ as-64964 destroyed. 01619_ Destroyed Phase Shifter. 01619_ as-93305 suffers critical hit (Destroy). 01619_ as-93305 knocked back. 01619_ K-01 Serf destroyed. 01622_ SB-HW8(h) destroyed. 01624_ The unstable cave ceiling collapses. 01624_ R-06 Scavenger collects Wheel. 01625_ Mercenary 1a system corrupted by crushing effect. 01626_ Mercenary 1a system terminally corrupted. 01628_ Trooper 1b destroyed. 01633_ U-05 Engineer builds a Wall. 01636_ The unstable cave ceiling collapses. 01644_ U-05 Engineer lays Concrete. 01646_ U-05 Engineer builds a Wall. 01649_ The unstable cave ceiling collapses. 01651_ U-05 Engineer lays Concrete. 01652_ The unstable cave ceiling collapses. 01652_ Welding Torch destroyed. Map ----- +----------------------------------------------------+ | | | | | | | | | | | | | | | | | | | | | ?????????????????????????????????????????????????? | | ?????????????????????????????????????????????????? | | ?????????????????????????????????????????????????? | | ######???????????????????????????????????????????? | | ######???????????????????????????????????????????? | | ##???????????????????????????### ????????????? | | ##?????????????????????????#### ???????????? | | ##????????????????????????### ???????????? | | ##???????????????????????### ????????????? | | ##???????????????########## ?????????????? | | #######????????########### ???????????????? | | #######???????##### ## ##???????????????? | | ##????###### ###???????????????? | | #### ##???###### ###????????????????? | | ######## ##???### ##?????????????????? | | ######## ####### @ ##?????????????????? | | ??????## ####### d d ##?????????????????? | | ??????## ?????????????? | | ??????## u ### #######?????????????? | | ??????####### #### # #########?????????????? | | ??????###### ######### ##??????????????????? | | ??????????## ####### ?????????????????????? | | ?????????### ##?????? ????????????????????? | | ????????##### % ##?????? ????????????????????? | | ????????### ##??????? ????????????????????? | | ????????## # ##????? ???????????????????? | | ????????## # ## ? ## ??????????????????? | | ????????## ## #### ??????????????????? | | ???????### # ####### ??????????????????? | | ???????## # ###????????????????????????? | | ???????### # ## ####????????????????????????? | | ???????### #######?????????????????????????? | | ????????## ######??????????????????????????? | | ????????### ##??????????????????????????????? | | ????????### #??????????????????????????????? | | ?????????## #??????????????????????????????? | | ?????????## % ##??????????????????????????????? | | ?????????## ##??????????????????????????????? | | ??????????## ????????????????????????????????? | | ??????????## ] ##????????????????????????????????? | +----------------------------------------------------+ Best States ------------- Heat Dissipation 25 Energy Generation 12 Energy Capacity 265 Matter Stores 283 Matter Capacity 300 Sight Range 16 Terrain Scan Density 10 Evasion (%) 44 Recoil Reduction 2 Item Schematics ----------------- None Robot Schematics ------------------ None Fabricated ------------ Nothing Repaired ---------- Nothing Studied --------- None Alien Tech Used ----------------- None Achievements -------------- None Challenges ------------ None Game ------ Seed ChromionCloakingFacilitator Manual? 0 Play Time 00:20:55 Cumulative 167.0 hours Start 2026.07.18 @ 21:43:32 End 2026.07.18 @ 22:19:05 Sessions 1 Manual Loads 0 Difficulty Rogue Special Mode None Game No. 183 Rogue 183 Adventurer 0 Explorer 0 Win Type - Total 0 Types 0/0/0/0/0/0/0/0/0/0 Lore% 56 Gallery% 45 Achievement% 32 Wizard Run 0 Options --------- Layout 0 ASCII 0 Keyboard 0 Movement Arrows Keybinds 0 Fullscreen 0 Font 16/SmallcapsGlow Map View 76x50 Zoom Use 0% Tactical HUD 1 Map Filters NONE Filters NONE Steam 1 RUN: 3618dbde-6b97-4f50-8e97-aadfec4f4c03